{"text_format":"3","workbook":"xlsx","n_sheets":2,"sheets":["list","data"],"not_rendered":{"external_links":1,"defined_names":8},"read":"whole","date_system":"1900"}

{"sheet":"list","index":0,"n_rows":32,"n_cols":6,"rows_kept":32}
["№","Фамилия","Класс","Класс участия","Балл","Макс. Балл"]
[1,3,9,10,11,12]
[{"$f":"[1]st2_protocoldata_subj!A3","v":1},{"$f":"[1]st2_protocoldata_subj!C3","v":"Косоногов"},{"$f":"[1]st2_protocoldata_subj!I3","v":8},{"$f":"[1]st2_protocoldata_subj!J3","v":8},51,{"$f":"[1]st2_protocoldata_subj!L3","v":90}]
[{"$f":"[1]st2_protocoldata_subj!A4","v":2},{"$f":"[1]st2_protocoldata_subj!C4","v":"Хамидуллин"},{"$f":"[1]st2_protocoldata_subj!I4","v":8},{"$f":"[1]st2_protocoldata_subj!J4","v":8},{"$f":"[1]st2_protocoldata_subj!K4","v":20},{"$f":"[1]st2_protocoldata_subj!L4","v":90}]
[{"$f":"[1]st2_protocoldata_subj!A5","v":4},{"$f":"[1]st2_protocoldata_subj!C5","v":"Галимов"},{"$f":"[1]st2_protocoldata_subj!I5","v":9},{"$f":"[1]st2_protocoldata_subj!J5","v":9},{"$f":"[1]st2_protocoldata_subj!K5","v":32},{"$f":"[1]st2_protocoldata_subj!L5","v":95}]
[{"$f":"[1]st2_protocoldata_subj!A6","v":5},{"$f":"[1]st2_protocoldata_subj!C6","v":"Арсланова"},{"$f":"[1]st2_protocoldata_subj!I6","v":9},{"$f":"[1]st2_protocoldata_subj!J6","v":9},{"$f":"[1]st2_protocoldata_subj!K6","v":38},{"$f":"[1]st2_protocoldata_subj!L6","v":95}]
[{"$f":"[1]st2_protocoldata_subj!A7","v":7},{"$f":"[1]st2_protocoldata_subj!C7","v":"Петров"},{"$f":"[1]st2_protocoldata_subj!I7","v":9},{"$f":"[1]st2_protocoldata_subj!J7","v":9},{"$f":"[1]st2_protocoldata_subj!K7","v":4},{"$f":"[1]st2_protocoldata_subj!L7","v":95}]
[{"$f":"[1]st2_protocoldata_subj!A8","v":8},{"$f":"[1]st2_protocoldata_subj!C8","v":"Аслямов"},{"$f":"[1]st2_protocoldata_subj!I8","v":9},{"$f":"[1]st2_protocoldata_subj!J8","v":9},{"$f":"[1]st2_protocoldata_subj!K8","v":25},{"$f":"[1]st2_protocoldata_subj!L8","v":95}]
[{"$f":"[1]st2_protocoldata_subj!A9","v":9},{"$f":"[1]st2_protocoldata_subj!C9","v":"Нургалиев"},{"$f":"[1]st2_protocoldata_subj!I9","v":9},{"$f":"[1]st2_protocoldata_subj!J9","v":9},{"$f":"[1]st2_protocoldata_subj!K9","v":14},{"$f":"[1]st2_protocoldata_subj!L9","v":95}]
[{"$f":"[1]st2_protocoldata_subj!A10","v":10},{"$f":"[1]st2_protocoldata_subj!C10","v":"Зиннатуллина"},{"$f":"[1]st2_protocoldata_subj!I10","v":9},{"$f":"[1]st2_protocoldata_subj!J10","v":9},{"$f":"[1]st2_protocoldata_subj!K10","v":30},{"$f":"[1]st2_protocoldata_subj!L10","v":95}]
[{"$f":"[1]st2_protocoldata_subj!A11","v":11},{"$f":"[1]st2_protocoldata_subj!C11","v":"Ахметшина"},{"$f":"[1]st2_protocoldata_subj!I11","v":9},{"$f":"[1]st2_protocoldata_subj!J11","v":9},{"$f":"[1]st2_protocoldata_subj!K11","v":54},{"$f":"[1]st2_protocoldata_subj!L11","v":95}]
[{"$f":"[1]st2_protocoldata_subj!A12","v":12},{"$f":"[1]st2_protocoldata_subj!C12","v":"Филатов"},{"$f":"[1]st2_protocoldata_subj!I12","v":9},{"$f":"[1]st2_protocoldata_subj!J12","v":9},{"$f":"[1]st2_protocoldata_subj!K12","v":65},{"$f":"[1]st2_protocoldata_subj!L12","v":95}]
[{"$f":"[1]st2_protocoldata_subj!A13","v":13},{"$f":"[1]st2_protocoldata_subj!C13","v":"Исрафилов"},{"$f":"[1]st2_protocoldata_subj!I13","v":11},{"$f":"[1]st2_protocoldata_subj!J13","v":11},{"$f":"[1]st2_protocoldata_subj!K13","v":49},{"$f":"[1]st2_protocoldata_subj!L13","v":90}]
[{"$f":"[1]st2_protocoldata_subj!A14","v":15},{"$f":"[1]st2_protocoldata_subj!C14","v":"Гусманова"},{"$f":"[1]st2_protocoldata_subj!I14","v":11},{"$f":"[1]st2_protocoldata_subj!J14","v":11},{"$f":"[1]st2_protocoldata_subj!K14","v":48},{"$f":"[1]st2_protocoldata_subj!L14","v":90}]
[{"$f":"[1]st2_protocoldata_subj!A15","v":16},{"$f":"[1]st2_protocoldata_subj!C15","v":"Шагвалиева"},{"$f":"[1]st2_protocoldata_subj!I15","v":11},{"$f":"[1]st2_protocoldata_subj!J15","v":11},{"$f":"[1]st2_protocoldata_subj!K15","v":53},{"$f":"[1]st2_protocoldata_subj!L15","v":90}]
[{"$f":"[1]st2_protocoldata_subj!A16","v":17},{"$f":"[1]st2_protocoldata_subj!C16","v":"Григорьева"},{"$f":"[1]st2_protocoldata_subj!I16","v":11},{"$f":"[1]st2_protocoldata_subj!J16","v":11},{"$f":"[1]st2_protocoldata_subj!K16","v":51},{"$f":"[1]st2_protocoldata_subj!L16","v":90}]
[{"$f":"[1]st2_protocoldata_subj!A17","v":18},{"$f":"[1]st2_protocoldata_subj!C17","v":"Сахапов"},{"$f":"[1]st2_protocoldata_subj!I17","v":11},{"$f":"[1]st2_protocoldata_subj!J17","v":11},{"$f":"[1]st2_protocoldata_subj!K17","v":35},{"$f":"[1]st2_protocoldata_subj!L17","v":90}]
[{"$f":"[1]st2_protocoldata_subj!A18","v":19},{"$f":"[1]st2_protocoldata_subj!C18","v":"Салахова"},{"$f":"[1]st2_protocoldata_subj!I18","v":11},{"$f":"[1]st2_protocoldata_subj!J18","v":11},{"$f":"[1]st2_protocoldata_subj!K18","v":47},{"$f":"[1]st2_protocoldata_subj!L18","v":90}]
[{"$f":"[1]st2_protocoldata_subj!A19","v":20},{"$f":"[1]st2_protocoldata_subj!C19","v":"Якупов"},{"$f":"[1]st2_protocoldata_subj!I19","v":11},{"$f":"[1]st2_protocoldata_subj!J19","v":11},{"$f":"[1]st2_protocoldata_subj!K19","v":76},{"$f":"[1]st2_protocoldata_subj!L19","v":90}]
[{"$f":"[1]st2_protocoldata_subj!A20","v":21},{"$f":"[1]st2_protocoldata_subj!C20","v":"Рамазанов "},{"$f":"[1]st2_protocoldata_subj!I20","v":7},{"$f":"[1]st2_protocoldata_subj!J20","v":7},48,{"$f":"[1]st2_protocoldata_subj!L20","v":85}]
[{"$f":"[1]st2_protocoldata_subj!A21","v":22},{"$f":"[1]st2_protocoldata_subj!C21","v":"Исрафилов"},{"$f":"[1]st2_protocoldata_subj!I21","v":7},{"$f":"[1]st2_protocoldata_subj!J21","v":7},{"$f":"[1]st2_protocoldata_subj!K21","v":25},{"$f":"[1]st2_protocoldata_subj!L21","v":85}]
[{"$f":"[1]st2_protocoldata_subj!A22","v":23},{"$f":"[1]st2_protocoldata_subj!C22","v":"Бахтегараев"},{"$f":"[1]st2_protocoldata_subj!I22","v":7},{"$f":"[1]st2_protocoldata_subj!J22","v":7},{"$f":"[1]st2_protocoldata_subj!K22","v":21},{"$f":"[1]st2_protocoldata_subj!L22","v":85}]
[{"$f":"[1]st2_protocoldata_subj!A23","v":24},{"$f":"[1]st2_protocoldata_subj!C23","v":"Кутлиева"},{"$f":"[1]st2_protocoldata_subj!I23","v":6},{"$f":"[1]st2_protocoldata_subj!J23","v":6},{"$f":"[1]st2_protocoldata_subj!K23","v":24},{"$f":"[1]st2_protocoldata_subj!L23","v":80}]
[{"$f":"[1]st2_protocoldata_subj!A24","v":25},{"$f":"[1]st2_protocoldata_subj!C24","v":"Горшунова "},{"$f":"[1]st2_protocoldata_subj!I24","v":6},{"$f":"[1]st2_protocoldata_subj!J24","v":6},{"$f":"[1]st2_protocoldata_subj!K24","v":56},{"$f":"[1]st2_protocoldata_subj!L24","v":80}]
[{"$f":"[1]st2_protocoldata_subj!A25","v":26},{"$f":"[1]st2_protocoldata_subj!C25","v":"Шаяхметова"},6,6,35,80]
[{"$f":"[1]st2_protocoldata_subj!A26","v":27},{"$f":"[1]st2_protocoldata_subj!C26","v":"Кутлиева"},10,10,55,95]
[{"$f":"[1]st2_protocoldata_subj!A27","v":28},{"$f":"[1]st2_protocoldata_subj!C27","v":"Гараева"},10,10,55,95]
[{"$f":"[1]st2_protocoldata_subj!A28","v":29},{"$f":"[1]st2_protocoldata_subj!C28","v":"Калимуллина"},10,10,48,95]
[{"$f":"[1]st2_protocoldata_subj!A29","v":30},{"$f":"[1]st2_protocoldata_subj!C29","v":"Размочаева"},10,10,36,95]
[{"$f":"[1]st2_protocoldata_subj!A30","v":31},{"$f":"[1]st2_protocoldata_subj!C30","v":"Саттаров"},10,10,29,95]
[{"$f":"[1]st2_protocoldata_subj!A31","v":32},{"$f":"[1]st2_protocoldata_subj!C31","v":"Хабипов"},10,10,42,95]
[33,"Галауев",7,7,12,85]

{"sheet":"data","index":1,"n_rows":25,"n_cols":10,"rows_kept":25}
[{"$nulls":6},"1 - Техника, технология и техническое творчество","2 - Культура дома, дизайн и технологии","3 - Робототехника","4 - Информационная безопасность"]
["1 - Техника, технологии и техническое творчество","1.1  Практика по ручной деревообработке",{"$nulls":4},"1.1 Практика по ручной деревообработке","2.1 Ручная обработка швейного изделия или узла","3.1 Робототехника","4.1 Не предусмотрена"]
["2 - Культура дома, дизайн и технологии","1.2 Практика по механической деревообработке",{"$nulls":4},"1.2 Практика по механической деревообработке","2.2 Механическая обработка швейного изделия или узла + Моделирование"]
["3 - Робототехника","1.3 Практика по ручной металлообработке",{"$nulls":4},"1.3 Практика по ручной металлообработке","2.3 Обработка швейного изделия или узла на швейно-вышивальном оборудовании + Моделирование"]
["4 - Информационная безопасность","1.4 Практика по механической металлообработке",{"$nulls":4},"1.4 Практика по механической металлообработке","2.4 3D-моделирование и печать"]
[null,"1.5 Электрорадиотехника",{"$nulls":4},"1.5 Электрорадиотехника","2.5 Практика по работе на лазерно-гравировальном станке"]
[null,"1.6 3D-моделирование и печать",{"$nulls":4},"1.6 3D-моделирование и печать","2.6 Промышленный дизайн"]
[null,"1.7 Практика по работе на лазерно-гравировальном станке",{"$nulls":4},"1.7 Практика по работе на лазерно-гравировальном станке"]
[null,"1.8 Промышленный дизайн",{"$nulls":4},"1.8 Промышленный дизайн"]
[null,"2.1 Ручная обработка швейного изделия или узла"]
[null,"2.2 Механическая обработка швейного изделия или узла + Моделирование",{"$nulls":6},"3.1 Робототехника","4.1 Не предусмотрена"]
[null,"2.3 Обработка швейного изделия или узла на швейно-вышивальном оборудовании + Моделирование"]
[null,"2.4 3D-моделирование и печать"]
[null,"2.5 Практика по работе на лазерно-гравировальном станке"]
[null,"2.6 Промышленный дизайн"]
[null,"3.1 Робототехника"]
[null,"4.1 Не предусмотрена"]
[]
[]
[]
[]
[]
["участник"]
["призер",null,"да","да",null,"м"]
["победитель",null,null,"нет",null,"ж"]